fUST/lending_fUST_20240115
["ID","MTS","AMOUNT","RATE_DAILY","PERIOD"]
[311657126,1705288238658,-500.0,0.00027397,2]
[311657127,1705288238666,-500.39204374,0.00027397,2]
[311657128,1705288238676,-500.0,0.00027397,2]
[311657129,1705288238685,-535.12,0.00027397,2]
[311657130,1705288238694,-500.0,0.00027397,2]
[311657131,1705288238703,-500.0,0.00027397,2]
[311657132,1705288238712,-500.0,0.00027397,2]
[311657133,1705288238721,-500.0,0.00027397,2]
[311657134,1705288238731,-500.0,0.00027397,2]
[311657135,1705288238741,-500.0,0.00027397,2]
[311657136,1705288238750,-500.0,0.00027397,2]
[311657137,1705288238761,-500.0,0.00027397,2]
[311657138,1705288238771,-500.0,0.00027397,2]
[311657139,1705288238781,-337.83766465,0.00027397,2]
[311657140,1705288238790,-500.0,0.00027397,2]
[311657141,1705288238799,-505.12526653,0.00027397,2]
[311657142,1705288238809,-500.0,0.00027397,2]
[311657143,1705288238818,-500.0,0.00027397,2]
[311657144,1705288238828,-500.0,0.00027397,2]
[311657145,1705288238838,-500.0,0.00027397,2]
[311657146,1705288238847,-1920.27,0.00027397,2]
[311657147,1705288238856,-213.340984,0.00027397,2]
[311657148,1705288238865,-500.0,0.00027397,2]
[311657149,1705288238874,-627.39276305,0.00027397,2]
[311657150,1705288238883,-500.0,0.00027397,2]
[311657151,1705288238892,-1008.64,0.00027397,2]
[311657152,1705288238902,-500.0,0.00027397,2]
[311657153,1705288238911,-500.0,0.00027397,2]
[311657154,1705288238920,-500.0,0.00027397,2]
[311657155,1705288238929,-500.0,0.00027397,2]
[311657156,1705288238938,-500.0,0.00027397,2]
[311657157,1705288238947,-500.0,0.00027397,2]
[311657158,1705288238956,-10722.82,0.00027397,2]
[311657159,1705288238966,-18131.6,0.00027397,2]
[311657160,1705288239061,-500.0,0.00027397,2]
[311657161,1705288239074,-500.0,0.00027397,2]
[311657162,1705288239083,-500.0,0.00027397,2]
[311657163,1705288239093,-500.0,0.00027397,2]
[311657164,1705288239102,-500.0,0.00027397,2]
[311657165,1705288239111,-1159.17,0.00027397,2]
[311657166,1705288239121,-500.0,0.00027397,2]
[311657167,1705288239130,-500.85643977,0.00027397,2]
[311657168,1705288239139,-500.0,0.00027397,2]
[311657169,1705288239148,-586.25,0.00027397,2]
[311657170,1705288239157,-500.0,0.00027397,2]
[311657171,1705288239166,-733.15,0.00027397,2]
[311657172,1705288239176,-500.0,0.00027397,2]
[311657173,1705288239186,-503.84730976,0.00027397,2]
[311657174,1705288239195,-500.0,0.00027397,2]
[311657175,1705288239204,-500.0,0.00027397,2]
[311657176,1705288239214,-548.52081002,0.00027397,2]
[311657177,1705288239223,-500.0,0.00027397,5]
[311657178,1705288239234,-500.0,0.00027397,2]
[311657179,1705288239243,-500.0,0.00027397,2]
[311657180,1705288239254,-155.0,0.00027397,2]
[311657181,1705288239263,-500.0,0.00027397,2]
[311657182,1705288239272,-500.0,0.00027397,2]
[311657183,1705288239280,-461.17843288,0.00027397,2]
[311657184,1705288239289,-500.0,0.00027397,2]
[311657185,1705288239298,-197.25905233,0.00027397,2]
[311657186,1705288239308,-500.0,0.00027397,2]
[311657187,1705288239317,-500.0,0.00027397,2]
[311657188,1705288239326,-500.0,0.00027397,2]
[311657189,1705288239337,-2072.65,0.00027397,2]
[311657190,1705288239346,-5524.09,0.00027397,2]
[311657191,1705288239355,-500.0,0.00027397,2]
[311657192,1705288239366,-500.0,0.00027397,2]
[311657193,1705288239377,-515.47059416,0.00027397,2]
[311657194,1705288239387,-502.34542097,0.00027397,2]
[311657195,1705288239396,-500.0,0.00027397,2]
[311657196,1705288239407,-500.0,0.00027397,2]
[311657197,1705288239417,-500.0,0.00027397,2]
[311657198,1705288239426,-5618.65,0.00027397,2]
[311657199,1705288239437,-500.0,0.00027397,2]
[311657200,1705288239446,-2118.59,0.00027397,2]
[311657201,1705288239455,-500.0,0.00027397,2]
[311657202,1705288239466,-500.0,0.00027397,2]
[311657203,1705288239475,-500.0,0.00027397,2]
[311657205,1705288239485,-200.33733336,0.00027397,2]
[311657206,1705288239494,-3879.46,0.00027397,2]
[311657207,1705288239503,-500.0,0.00027397,2]
[311657208,1705288239512,-500.0,0.00027397,2]
[311657209,1705288239522,-513.20667322,0.00027397,2]
[311657210,1705288239531,-221.1644569,0.00027397,2]
[311657211,1705288239540,-500.0,0.00027397,2]
[311657212,1705288239549,-500.0,0.00027397,2]
[311657213,1705288239558,-506.89266035,0.00027397,2]
[311657214,1705288239566,-3007.8,0.00027397,2]
[311657215,1705288239575,-500.0,0.00027397,2]
[311657216,1705288239585,-500.0,0.00027397,2]
[311657217,1705288239594,-500.0,0.00027397,2]
[311657218,1705288239602,-500.0,0.00027397,2]
[311657219,1705288239611,-500.0,0.00027397,2]
[311657220,1705288239620,-549.22,0.00027397,2]
[311657221,1705288239630,-500.0,0.00027397,2]
[311657222,1705288239638,-500.0,0.00027397,2]
[311657223,1705288239647,-500.0,0.00027397,2]
[311657224,1705288239656,-500.0,0.00027397,2]
[311657225,1705288239665,-1625.96081525,0.00027397,2]
[311657226,1705288239674,-500.0,0.00027397,2]
[311657227,1705288239683,-500.0,0.00027397,2]
[311657228,1705288239691,-500.0,0.00027397,2]
[311657229,1705288239701,-500.0,0.00027397,2]
[311657230,1705288239710,-500.0,0.00027397,2]
[311657231,1705288239719,-500.0,0.00027397,2]
[311657232,1705288239728,-500.0,0.00027397,2]
[311657233,1705288239737,-4507.45,0.00027397,2]
[311657234,1705288239746,-500.0,0.00027397,2]
[311657235,1705288239755,-500.0,0.00027397,2]
[311657236,1705288239764,-500.0,0.00027397,2]
[311657237,1705288239773,-500.0,0.00027397,2]
[311657238,1705288239783,-500.0,0.00027397,2]
[311657239,1705288239792,-500.0,0.00027397,2]
[311657240,1705288239801,-505.67458463,0.00027397,2]
[311657241,1705288239810,-479.34081517,0.00027397,2]
[311657242,1705288239820,-500.0,0.00027397,2]
[311657243,1705288239829,-500.0,0.00027397,2]
[311657244,1705288239838,-500.0,0.00027397,2]
[311657245,1705288239847,-1000.0,0.00027397,2]
[311657246,1705288239856,-500.0,0.00027397,2]
[311657247,1705288239866,-6528.64098091,0.000274,2]
[311657248,1705288239874,-500.0,0.00027534,2]
[311657249,1705288239884,-500.0,0.00027569,2]
[311657250,1705288239893,-296.65440758,0.00027667,2]
[311657251,1705288239904,-500.0,0.0002767,2]
[311657252,1705288239913,-500.0,0.0002767,2]
[311657253,1705288239923,-500.0,0.0002767,2]
[311657254,1705288239933,-500.0,0.0002767,2]
[311657255,1705288239942,-505.15095378,0.00027671,2]
[311657256,1705288239951,-500.0,0.00027671,2]
[311657257,1705288239960,-324.20723267,0.00027671,2]
[311657258,1705288239969,-500.0,0.00027671,2]
[311657259,1705288239978,-502.23369092,0.00027671,2]
[311657260,1705288239988,-500.0,0.00027671,2]
[311657261,1705288239997,-500.0,0.00027671,2]
[311657262,1705288240008,-500.0,0.00027671,2]
[311657263,1705288240017,-500.0,0.00027671,2]
[311657264,1705288240027,-1909.29,0.00027671,2]
[311657265,1705288240036,-500.0,0.00027671,2]
[311657266,1705288240045,-500.0,0.00027671,2]
[311657267,1705288240054,-500.0,0.00027671,2]
[311657268,1705288240066,-1122.67,0.00027671,2]
[311657269,1705288240075,-534.36183417,0.00027671,2]
[311657270,1705288240084,-500.0,0.00027671,2]
[311657271,1705288240093,-503.45776343,0.00027671,2]
[311657272,1705288240102,-500.0,0.00027671,2]
[311657273,1705288240111,-500.0,0.00027671,2]
[311657274,1705288240121,-500.0,0.00027671,2]
[311657275,1705288240130,-500.0,0.00027671,2]
[311657276,1705288240139,-500.0,0.00027671,2]
[311657277,1705288240149,-500.0,0.00027671,2]
[311657278,1705288240159,-749.91,0.00027671,2]
[311657279,1705288240169,-500.0,0.00027671,2]
[311657280,1705288240179,-502.8108887,0.00027671,2]
[311657281,1705288240189,-500.0,0.00027671,2]
[311657282,1705288240199,-503.35354243,0.00027671,2]
[311657283,1705288240209,-500.0,0.00027671,2]
[311657284,1705288240218,-504.468551,0.00027671,2]
[311657285,1705288240228,-507.19143046,0.00027671,2]
[311657286,1705288240237,-500.0,0.00027671,2]
[311657287,1705288240246,-500.0,0.00027671,2]
[311657288,1705288240255,-905.81,0.00027671,2]
[311657289,1705288240264,-500.0,0.00027671,2]
[311657290,1705288240274,-607.63560946,0.00027671,2]
[311657291,1705288240283,-500.0,0.00027671,2]
[311657292,1705288240292,-581.91,0.00027671,2]
[311657293,1705288240301,-500.0,0.00027671,2]
[311657294,1705288240311,-500.0,0.00027671,2]
[311657295,1705288240320,-1247.9,0.00027671,2]
[311657296,1705288240329,-500.0,0.00027671,2]
[311657297,1705288240338,-500.0,0.00027671,2]
[311657298,1705288240347,-500.0,0.00027671,2]
[311657299,1705288240355,-377.45367619,0.00027671,2]
[311657300,1705288240365,-500.0,0.00027671,2]
[311657301,1705288240374,-500.0,0.00027671,2]
[311657302,1705288240383,-504.42683883,0.00027671,2]
[311657303,1705288240392,-500.0,0.00027671,2]
[311657304,1705288240401,-500.0,0.00027671,2]
[311657305,1705288240410,-500.0,0.00027671,2]
[311657306,1705288240419,-1387.54,0.00027671,2]
[311657307,1705288240428,-500.0,0.00027671,2]
[311657308,1705288240437,-538.9977585,0.00027671,2]
[311657309,1705288240446,-609.35,0.00027671,2]
[311657310,1705288240455,-660.74,0.00027671,2]
[311657311,1705288240464,-500.0,0.00027671,2]
[311657312,1705288240474,-553.47,0.00027671,2]
[311657313,1705288240484,-500.0,0.00027671,2]
[311657314,1705288240493,-859.06,0.00027671,2]
[311657315,1705288240501,-500.0,0.00027671,2]
[311657316,1705288240513,-500.0,0.00027671,2]
[311657317,1705288240525,-287.40908041,0.00027671,2]
[311657318,1705288240534,-500.0,0.00027671,2]
[311657319,1705288240543,-501.08375039,0.00027671,2]
[311657320,1705288240552,-500.0,0.00027671,2]
[311657321,1705288240561,-500.0,0.00027671,2]
[311657322,1705288240570,-500.0,0.00027671,2]
[311657323,1705288240579,-500.0,0.00027671,2]
[311657324,1705288240589,-500.0,0.00027671,2]
[311657325,1705288240598,-500.0,0.00027671,2]
[311657326,1705288240607,-500.0,0.00027671,2]
[311657327,1705288240617,-500.0,0.00027671,2]
[311657328,1705288240627,-504.8361977,0.00027671,2]
[311657329,1705288240636,-502.10644996,0.00027671,2]
[311657330,1705288240645,-500.0,0.00027671,2]
[311657331,1705288240655,-500.0,0.00027671,2]
[311657332,1705288240664,-500.0,0.00027671,2]
[311657333,1705288240673,-500.0,0.00027671,2]
[311657334,1705288240682,-398.73359353,0.00027671,2]
[311657335,1705288240691,-500.0,0.00027671,2]
[311657336,1705288240699,-751.3,0.00027671,2]
[311657337,1705288240708,-528.78,0.00027671,2]
[311657338,1705288240717,-500.0,0.00027671,2]
[311657339,1705288240727,-500.0,0.00027671,2]
[311657340,1705288240736,-502.84505842,0.00027671,2]
[311657341,1705288240745,-507.23683336,0.00027671,2]
[311657342,1705288240755,-250.30709217,0.00027671,2]
[311657343,1705288240765,-500.0,0.00027671,2]
[311657344,1705288240775,-500.0,0.00027671,2]
[311657345,1705288240785,-500.0,0.00027671,2]
[311657346,1705288240794,-500.0,0.00027671,2]
[311657347,1705288240803,-500.0,0.00027671,2]
[311657348,1705288240813,-503.2282756,0.00027671,2]
[311657349,1705288240822,-500.0,0.00027671,2]
[311657350,1705288240832,-500.0,0.00027671,2]
[311657351,1705288240841,-1073.89,0.00027671,2]
[311657352,1705288240850,-500.0,0.00027671,2]
[311657353,1705288240859,-500.0,0.00027671,2]
[311657354,1705288240869,-500.0,0.00027671,2]
[311657355,1705288240878,-524.70301198,0.00027671,2]
[311657356,1705288240887,-500.0,0.00027671,2]
[311657357,1705288240896,-507.82176411,0.00027671,2]
[311657358,1705288240905,-1035.38,0.00027671,2]
[311657359,1705288240915,-505.69137092,0.00027671,2]
[311657360,1705288240924,-506.080899,0.00027671,2]
[311657361,1705288240934,-500.0,0.00027671,2]
[311657362,1705288240943,-500.0,0.00027671,2]
[311657363,1705288240953,-923.13,0.00027671,2]
[311657364,1705288240962,-500.0,0.00027671,2]
[311657365,1705288240971,-500.0,0.00027671,2]
[311657366,1705288240981,-508.42158599,0.00027671,2]
[311657368,1705288240990,-652.08,0.00027671,2]
[311657370,1705288240999,-500.0,0.00027671,2]
[311657371,1705288241010,-500.0,0.00027671,2]
[311657373,1705288241019,-500.0,0.00027671,2]
[311657374,1705288241028,-500.0,0.00027671,2]
[311657376,1705288241038,-500.0,0.00027671,2]
[311657378,1705288241048,-628.23011085,0.00027671,2]
[311657379,1705288241058,-535.12,0.00027671,2]
[311657380,1705288241069,-500.0,0.00027671,2]
[311657381,1705288241078,-500.0,0.00027671,2]
[311657382,1705288241088,-500.0,0.00027671,2]
[311657383,1705288241098,-500.0,0.00027671,2]
[311657384,1705288241108,-500.0,0.00027671,2]
[311657385,1705288241118,-503.82291025,0.00027671,2]
[311657386,1705288241128,-500.0,0.00027671,2]
[311657388,1705288241222,-500.0,0.00027671,2]
[311657390,1705288241233,-500.0,0.00027671,2]
[311657391,1705288241243,-500.0,0.00027671,2]
[311657393,1705288241253,-500.0,0.00027671,2]
[311657394,1705288241264,-1920.27,0.00027671,2]
[311657396,1705288241273,-500.0,0.00027671,2]
[311657397,1705288241283,-500.0,0.00027671,2]
[311657398,1705288241294,-1008.64,0.00027671,2]
[311657399,1705288241303,-500.0,0.00027671,2]
[311657400,1705288241313,-425.03867286,0.00027671,2]
[311657401,1705288241323,-500.29488324,0.00027671,2]
[311657402,1705288241333,-500.0,0.00027671,2]
[311657403,1705288241343,-500.0,0.00027671,2]
[311657404,1705288241352,-10722.82,0.00027671,2]
[311657405,1705288241361,-18131.6,0.00027671,2]
[311657406,1705288241371,-189.61033351,0.00027671,2]
[311657407,1705288241380,-401.59386146,0.00027671,2]
[311657408,1705288241390,-1159.17,0.00027671,2]
[311657409,1705288241399,-500.0,0.00027671,2]
[311657410,1705288241408,-500.0,0.00027671,2]
[311657411,1705288241418,-586.25,0.00027671,2]
[311657412,1705288241427,-502.1632738,0.00027671,2]
[311657413,1705288241437,-733.15,0.00027671,2]
[311657414,1705288241446,-500.0,0.00027671,2]
[311657415,1705288241456,-383.87330556,0.00027671,2]
[311657416,1705288241466,-500.0,0.00027671,2]
[311657417,1705288241476,-502.01063694,0.00027671,5]
[311657418,1705288241486,-500.0,0.00027671,2]
[311657419,1705288241496,-500.0,0.00027671,2]
[311657420,1705288241506,-500.0,0.00027671,2]
[311657421,1705288241515,-500.3640637,0.00027671,2]
[311657422,1705288241525,-500.0,0.00027671,2]
[311657423,1705288241534,-502.83385519,0.00027671,2]
[311657424,1705288241544,-2072.65,0.00027671,2]
[311657425,1705288241553,-5524.09,0.00027671,2]
[311657426,1705288241562,-500.0,0.00027671,2]
[311657427,1705288241571,-500.0,0.00027671,2]
[311657428,1705288241581,-500.0,0.00027671,2]
[311657429,1705288241590,-500.0,0.00027671,2]
[311657430,1705288241600,-500.0,0.00027671,2]
[311657431,1705288241609,-500.0,0.00027671,2]
[311657432,1705288241619,-5618.65,0.00027671,2]
[311657433,1705288241628,-2118.59,0.00027671,2]
[311657434,1705288241638,-500.0,0.00027671,2]
[311657435,1705288241647,-532.1773052,0.00027671,2]
[311657436,1705288241657,-500.0,0.00027671,2]
[311657437,1705288241667,-3879.46,0.00027671,2]
[311657438,1705288241677,-500.0,0.00027671,2]
[311657439,1705288241687,-500.0,0.00027671,2]
[311657440,1705288241697,-500.0,0.00027671,2]
[311657441,1705288241706,-500.0,0.00027671,2]
[311657442,1705288241716,-3007.8,0.00027671,2]
[311657443,1705288241726,-420.44547826,0.00027671,2]
[311657444,1705288241737,-500.0,0.00027671,2]
[311657445,1705288241747,-500.0,0.00027671,2]
[311657446,1705288241757,-504.38492076,0.00027671,2]
[311657447,1705288241766,-500.0,0.00027671,2]
[311657448,1705288241777,-549.22,0.00027671,2]
[311657449,1705288241787,-647.5156929,0.00027671,2]
[311657450,1705288241797,-500.0,0.00027671,2]
[311657451,1705288241807,-500.0,0.00027671,2]
[311657452,1705288241817,-500.0,0.00027671,2]
[311657453,1705288241827,-500.0,0.00027671,2]
[311657454,1705288241837,-500.66104757,0.00027671,2]
[311657455,1705288241847,-500.0,0.00027671,2]
[311657456,1705288241856,-500.0,0.00027671,2]
[311657457,1705288241866,-500.0,0.00027671,2]
[311657458,1705288241877,-500.0,0.00027671,2]
[311657459,1705288241886,-400.61539847,0.00027671,2]
[311657460,1705288241896,-4507.45,0.00027671,2]
[311657461,1705288241906,-500.0,0.00027671,2]
[311657462,1705288241916,-500.0,0.00027671,2]
[311657463,1705288241925,-500.0,0.00027671,2]
[311657464,1705288241935,-500.0,0.00027671,2]
[311657465,1705288241945,-500.0,0.00027671,2]
[311657466,1705288241956,-526.91670753,0.00027671,2]
[311657467,1705288241965,-500.0,0.00027671,2]
[311657468,1705288241975,-502.09339175,0.00027671,2]
[311657469,1705288241985,-1000.0,0.00027671,2]
[311657470,1705288241995,-688.3625771,0.000277,2]
[311657471,1705288242004,-509.5498702,0.00027808,2]
[311657472,1705288242015,-562.16562428,0.00027843,14]
[311657473,1705288242024,-6244.48628225,0.00027845,2]
[311657474,1705288242034,-500.0,0.00027944,2]
[311657475,1705288242044,-500.0,0.00027944,2]
[311657476,1705288242054,-500.0,0.00027944,2]
[311657477,1705288242068,-500.0,0.00027944,2]
[311657478,1705288242077,-412.90018737,0.00027945,2]
[311657479,1705288242087,-500.0,0.00027945,2]
[311657480,1705288242097,-500.0,0.00027945,2]
[311657481,1705288242109,-500.0,0.00027945,2]
[311657482,1705288242120,-500.0,0.00027945,2]
[311657483,1705288242131,-500.0,0.00027945,2]
[311657484,1705288242141,-1909.29,0.00027945,2]
[311657485,1705288242151,-500.0,0.00027945,2]
[311657486,1705288242161,-500.0,0.00027945,2]
[311657487,1705288242170,-1122.67,0.00027945,2]
[311657488,1705288242180,-500.0,0.00027945,2]
[311657489,1705288242189,-500.0,0.00027945,2]
[311657490,1705288242199,-500.0,0.00027945,2]
[311657491,1705288242209,-196.83956838,0.00027945,2]
[311657492,1705288242219,-500.0,0.00027945,2]
[311657493,1705288242229,-749.91,0.00027945,2]
[311657494,1705288242238,-500.0,0.00027945,2]
[311657495,1705288242249,-500.0,0.00027945,2]
[311657496,1705288242260,-509.6842685,0.00027945,2]
[311657497,1705288242269,-500.0,0.00027945,2]
[311657498,1705288242278,-500.0,0.00027945,2]
[311657499,1705288242288,-905.81,0.00027945,2]
[311657500,1705288242297,-500.0,0.00027945,2]
[311657501,1705288242307,-504.8929549,0.00027945,2]
[311657502,1705288242316,-581.91,0.00027945,2]
[311657503,1705288242326,-500.0,0.00027945,2]
[311657504,1705288242336,-500.0,0.00027945,2]
[311657505,1705288242345,-1247.9,0.00027945,2]
[311657506,1705288242355,-501.9226916,0.00027945,2]
[311657507,1705288242364,-501.59632751,0.00027945,2]
[311657508,1705288242373,-507.70866231,0.00027945,2]
[311657509,1705288242382,-500.0,0.00027945,2]
[311657510,1705288242392,-500.0,0.00027945,2]
[311657511,1705288242401,-500.0,0.00027945,2]
[311657512,1705288242410,-500.0,0.00027945,2]
[311657513,1705288242420,-1387.54,0.00027945,2]
[311657514,1705288242429,-349.43807217,0.00027945,2]
[311657515,1705288242438,-609.35,0.00027945,2]
[311657516,1705288242447,-660.74,0.00027945,2]
[311657517,1705288242457,-500.0,0.00027945,2]
[311657519,1705288242466,-553.47,0.00027945,2]
[311657521,1705288242476,-859.06,0.00027945,2]
[311657522,1705288242485,-500.0,0.00027945,2]
[311657523,1705288242494,-500.0,0.00027945,2]
[311657524,1705288242503,-500.0,0.00027945,2]
[311657525,1705288242514,-500.0,0.00027945,2]
[311657526,1705288242523,-500.0,0.00027945,2]
[311657527,1705288242533,-500.0,0.00027945,2]
[311657528,1705288242542,-225.8789871,0.00027945,2]
[311657529,1705288242550,-501.61315513,0.00027945,2]
[311657530,1705288242560,-500.0,0.00027945,2]
[311657532,1705288242569,-510.93448844,0.00027945,2]
[311657533,1705288242578,-500.0,0.00027945,2]
[311657535,1705288242588,-500.0,0.00027945,2]
[311657537,1705288242597,-629.50201696,0.00027945,2]
[311657539,1705288242607,-500.0,0.00027945,2]
[311657540,1705288242616,-751.3,0.00027945,2]
[311657541,1705288242626,-528.78,0.00027945,2]
[311657542,1705288242635,-500.0,0.00027945,2]
[311657543,1705288242644,-500.0,0.00027945,2]
[311657544,1705288242654,-421.22353423,0.00027945,2]
[311657545,1705288242663,-552.11188716,0.00027945,2]
[311657546,1705288242672,-500.0,0.00027945,2]
[311657547,1705288242681,-501.61517062,0.00027945,2]
[311657548,1705288242691,-500.0,0.00027945,2]
[311657549,1705288242700,-500.0,0.00027945,2]
[311657550,1705288242709,-500.0,0.00027945,2]
[311657551,1705288242718,-565.18204006,0.00027945,2]
[311657552,1705288242728,-1073.89,0.00027945,2]
[311657554,1705288242737,-505.09052415,0.00027945,2]
[311657556,1705288242747,-500.0,0.00027945,2]
[311657557,1705288242756,-1035.38,0.00027945,2]
[311657558,1705288242765,-923.13,0.00027945,2]
[311657559,1705288242774,-500.0,0.00027945,2]
[311657560,1705288242783,-492.96320687,0.00027945,2]
[311657562,1705288242793,-523.7082104,0.00027945,2]
[311657564,1705288242802,-652.08,0.00027945,2]
[311657565,1705288242811,-500.0,0.00027945,2]
[311657566,1705288242821,-508.34842881,0.00027945,2]
[311657568,1705288242831,-504.4795375,0.00027945,2]
[311657570,1705288242840,-500.0,0.00027945,2]
[311657572,1705288242849,-202.92742487,0.00027945,2]
[311657573,1705288242858,-535.12,0.00027945,2]
[311657575,1705288242867,-505.76347654,0.00027945,2]
[311657577,1705288242877,-525.43692836,0.00027945,2]
[311657580,1705288242886,-600.84545332,0.00027945,2]
[311657581,1705288242895,-500.0,0.00027945,2]
[311657583,1705288242904,-500.0,0.00027945,2]
[311657585,1705288242914,-502.5187616,0.00027945,2]
[311657587,1705288242923,-500.0,0.00027945,2]
[311657589,1705288242932,-559.57981711,0.00027945,2]
[311657591,1705288242942,-500.0,0.00027945,2]
[311657593,1705288242952,-1920.27,0.00027945,2]
[311657595,1705288242961,-500.0,0.00027945,2]
[311657597,1705288242970,-505.37573343,0.00027945,2]
[311657599,1705288242980,-1008.64,0.00027945,2]
[311657601,1705288242989,-500.0,0.00027945,2]
[311657603,1705288242998,-505.17356154,0.00027945,2]
[311657605,1705288243008,-10722.82,0.00027945,2]
[311657607,1705288243016,-18131.6,0.00027945,2]
[311657609,1705288243026,-1159.17,0.00027945,2]
[311657611,1705288243035,-500.0,0.00027945,2]
[311657613,1705288243043,-500.0,0.00027945,2]
[311657615,1705288243052,-586.25,0.00027945,2]
[311657617,1705288243064,-733.15,0.00027945,2]
[311657619,1705288243073,-500.0,0.00027945,2]
[311657621,1705288243082,-501.31127598,0.00027945,2]
[311657623,1705288243090,-500.0,0.00027945,2]
[311657625,1705288243099,-500.0,0.00027945,2]
[311657627,1705288243108,-500.0,0.00027945,2]
[311657629,1705288243118,-2072.65,0.00027945,2]
[311657631,1705288243127,-5524.09,0.00027945,2]
[311657634,1705288243136,-500.0,0.00027945,2]
[311657637,1705288243145,-518.86247278,0.00027945,2]
[311657639,1705288243155,-500.0,0.00027945,2]
[311657642,1705288243164,-500.0,0.00027945,2]
[311657650,1705288243243,-500.0,0.00027945,2]
[311657651,1705288243253,-5618.65,0.00027945,2]
[311657652,1705288243263,-500.0,0.00027945,2]
[311657653,1705288243273,-500.0,0.00027945,2]
[311657654,1705288243284,-2118.59,0.00027945,2]
[311657655,1705288243294,-530.74249205,0.00027945,2]
[311657656,1705288243306,-3879.46,0.00027945,2]
[311657657,1705288243315,-500.0,0.00027945,2]
[311657658,1705288243324,-500.0,0.00027945,2]
[311657659,1705288243334,-500.0,0.00027945,2]
[311657660,1705288243343,-501.93703226,0.00027945,2]
[311657661,1705288243352,-3007.8,0.00027945,2]
[311657662,1705288243363,-500.0,0.00027945,2]
[311657663,1705288243374,-500.0,0.00027945,2]
[311657664,1705288243383,-253.24117854,0.00027945,2]
[311657665,1705288243393,-549.22,0.00027945,2]
[311657666,1705288243402,-500.0,0.00027945,2]
[311657667,1705288243411,-500.0,0.00027945,2]
[311657668,1705288243420,-494.55021322,0.00027945,2]
[311657669,1705288243430,-500.0,0.00027945,2]
[311657670,1705288243439,-500.0,0.00027945,2]
[311657671,1705288243449,-4507.45,0.00027945,2]
[311657672,1705288243458,-500.0,0.00027945,2]
[311657673,1705288243467,-500.0,0.00027945,2]
[311657675,1705288243476,-500.0,0.00027945,2]
[311657677,1705288243484,-500.0,0.00027945,2]
[311657678,1705288243493,-500.0,0.00027945,2]
[311657680,1705288243503,-4112.7341507,0.00028,2]
[311657681,1705288243513,-200.0,0.00028,4]
[311657682,1705288243522,-500.0,0.00028217,2]
[311657683,1705288243531,-500.0,0.00028218,2]
[311657684,1705288243540,-500.0,0.00028218,2]
[311657685,1705288243550,-500.0,0.00028218,2]
[311657686,1705288243560,-500.0,0.00028219,2]
[311657687,1705288243569,-500.0,0.00028219,2]
[311657689,1705288243578,-500.0,0.00028219,2]
[311657690,1705288243587,-500.0,0.00028219,2]
[311657691,1705288243597,-1909.29,0.00028219,2]
[311657692,1705288243606,-500.0,0.00028219,2]
[311657693,1705288243616,-500.0,0.00028219,2]
[311657694,1705288243625,-1122.67,0.00028219,2]
[311657695,1705288243634,-500.0,0.00028219,2]